fUSD/lending_fUSD_20260408
["ID","MTS","AMOUNT","RATE_DAILY","PERIOD"]
[420086678,1775662283159,-1500.0,0.00014646,2]
[420086679,1775662283169,-1500.0,0.00014646,2]
[420086680,1775662283180,-1500.0,0.00014646,2]
[420086681,1775662283190,-1500.0,0.00014646,2]
[420086682,1775662283201,-1500.0,0.00014646,2]
[420086683,1775662283211,-174.61919141,0.00014646,2]
[420086684,1775662283221,-1500.0,0.00014646,2]
[420086685,1775662283232,-1500.0,0.00014646,2]
[420086686,1775662283242,-1500.0,0.00014646,2]
[420086687,1775662283252,-1500.0,0.00014646,2]
[420086688,1775662283262,-1500.0,0.00014646,2]
[420086689,1775662283271,-1500.0,0.00014646,2]
[420086690,1775662283281,-1120.91593184,0.00014646,2]
[420086691,1775662283291,-1532.75885711,0.00014646,2]
[420086692,1775662283301,-181.08010149,0.00014646,2]
[420086693,1775662283311,-170.0,0.00014646,2]
[420086694,1775662283321,-170.0,0.00014646,2]
[420086695,1775662283332,-170.0,0.00014646,2]
[420086696,1775662283341,-170.0,0.00014646,2]
[420086697,1775662283352,-170.0,0.00014646,2]
[420086698,1775662283362,-170.0,0.00014646,2]
[420086699,1775662283371,-599.60298507,0.00014646,2]
[420086700,1775662283381,-170.0,0.00014646,2]
[420086701,1775662283391,-170.0,0.00014646,2]
[420086702,1775662283401,-170.0,0.00014646,2]
[420086703,1775662283412,-170.0,0.00014646,2]
[420086704,1775662283423,-170.0,0.00014646,2]
[420086705,1775662283433,-170.0,0.00014646,2]
[420086706,1775662283442,-170.0,0.00014646,2]
[420086707,1775662283577,-170.0,0.00014646,2]
[420086708,1775662283588,-170.0,0.00014646,2]
[420086709,1775662283597,-285.62441693,0.00014646,2]
[420086710,1775662283607,-151.0,0.00014646,2]
[420086711,1775662283617,-197.326713,0.00014646,2]
[420086712,1775662283627,-151.0,0.00014646,2]
[420086713,1775662283637,-163.489759,0.00014646,2]
[420086714,1775662283646,-163.489759,0.00014646,2]
[420086715,1775662283656,-151.0,0.00014646,2]
[420086716,1775662283665,-163.489759,0.00014646,2]
[420086717,1775662283676,-151.0,0.00014646,2]
[420086718,1775662283685,-163.489759,0.00014646,2]
[420086719,1775662283695,-151.0,0.00014646,2]
[420086720,1775662283705,-151.0,0.00014646,2]
[420086721,1775662283715,-151.0,0.00014646,2]
[420086722,1775662283724,-151.0,0.00014646,2]
[420086723,1775662283733,-151.0,0.00014646,2]
[420086724,1775662283743,-151.0,0.00014646,2]
[420086725,1775662283753,-151.0,0.00014646,2]
[420086726,1775662283763,-256.960367,0.00014646,2]
[420086727,1775662283773,-256.960367,0.00014646,2]
[420086728,1775662283782,-252.791544,0.00014646,2]
[420086729,1775662283793,-256.960367,0.00014646,2]
[420086730,1775662283802,-252.791544,0.00014646,2]
[420086731,1775662283812,-256.960366,0.00014646,2]
[420086732,1775662283821,-252.791544,0.00014646,2]
[420086733,1775662283831,-892.21053,0.00014646,2]
[420086734,1775662283841,-252.791553,0.00014646,2]
[420086735,1775662283851,-892.21053,0.00014646,2]
[420086736,1775662283860,-892.21053,0.00014646,2]
[420086737,1775662283870,-892.210534,0.00014646,2]
[420086738,1775662283880,-264.356208,0.00014646,2]
[420086739,1775662283890,-264.356208,0.00014646,2]
[420086740,1775662283901,-151.0,0.00014646,2]
[420086741,1775662283911,-264.356208,0.00014646,2]
[420086742,1775662283921,-264.356202,0.00014646,2]
[420086743,1775662283931,-397.675418,0.00014646,2]
[420086744,1775662283942,-170.217695,0.00014646,2]
[420086745,1775662283953,-397.675418,0.00014646,2]
[420086746,1775662283964,-170.217695,0.00014646,2]
[420086747,1775662283975,-397.675418,0.00014646,2]
[420086748,1775662283985,-170.217695,0.00014646,2]
[420086749,1775662283995,-397.675427,0.00014646,2]
[420086750,1775662284006,-170.2177,0.00014646,2]
[420086751,1775662284016,-516.951966,0.00014646,2]
[420086752,1775662284027,-178.206032,0.00014646,2]
[420086753,1775662284037,-516.951966,0.00014646,2]
[420086754,1775662284047,-178.206032,0.00014646,2]
[420086755,1775662284057,-516.951966,0.00014646,2]
[420086756,1775662284066,-966.821984,0.00014646,2]
[420086757,1775662284075,-178.206032,0.00014646,2]
[420086758,1775662284085,-516.951967,0.00014646,2]
[420086759,1775662284095,-966.821984,0.00014646,2]
[420086760,1775662284104,-178.206034,0.00014646,2]
[420086761,1775662284114,-966.821984,0.00014646,2]
[420086762,1775662284124,-966.821987,0.00014646,2]
[420086763,1775662284134,-985.91,0.00014658,2]
[420086764,1775662284143,-427.4,0.00014693,2]
[420086765,1775662284153,-500.0,0.00014701,2]
[420086766,1775662284162,-8565.75555911,0.00014701,2]
[420086767,1775662284173,-151.0,0.00014701,2]
[420086768,1775662284183,-162.0,0.00014718,2]
[420086769,1775662284194,-159.59,0.00014733,2]
[420086770,1775662284203,-500.0,0.00014756,2]
[420086771,1775662284213,-8882.6885148,0.00014756,2]
[420086772,1775662284223,-151.0,0.00014756,2]
[420086773,1775662284232,-1500.0,0.00014795,2]
[420086774,1775662284242,-1255.90284256,0.00014795,2]
[420086775,1775662284252,-1315.21682164,0.00014795,2]
[420086776,1775662284260,-1018.40309967,0.00014795,2]
[420086777,1775662284271,-196.79007536,0.00014795,2]
[420086778,1775662284281,-1500.0,0.00014795,2]
[420086779,1775662284290,-500.0,0.00014795,2]
[420086780,1775662284300,-1500.0,0.00014795,2]
[420086781,1775662284312,-644.24089955,0.00014795,2]
[420086782,1775662284322,-1500.0,0.00014795,2]
[420086783,1775662284333,-1500.0,0.00014795,2]
[420086784,1775662284343,-1002.38567456,0.00014795,2]
[420086785,1775662284353,-1500.0,0.00014795,2]
[420086786,1775662284363,-1500.0,0.00014795,2]
[420086787,1775662284372,-445.29859118,0.00014795,2]
[420086788,1775662284383,-1070.5730129,0.00014795,2]
[420086789,1775662284393,-250.0,0.00014795,2]
[420086790,1775662284403,-1500.0,0.00014795,2]
[420086791,1775662284413,-1500.0,0.00014795,2]
[420086792,1775662284423,-1500.0,0.00014795,2]
[420086793,1775662284434,-1500.0,0.00014795,2]
[420086794,1775662284445,-1430.82314799,0.00014795,2]
[420086795,1775662284454,-502.36079739,0.00014795,2]
[420086796,1775662284464,-786.02,0.00014795,2]
[420086797,1775662284474,-956.0,0.00014795,2]
[420086798,1775662284484,-500.0,0.00014811,2]
[420086799,1775662284494,-7419.93871538,0.00014811,2]
[420086800,1775662284504,-296.68813754,0.00014811,2]
[420086801,1775662284514,-500.0,0.00014866,2]
[420086802,1775662284525,-262.7432,0.000149,2]
[420086803,1775662284536,-500.0,0.00014921,2]
[420086804,1775662284545,-427.4,0.00014928,2]
[420086805,1775662284555,-883.72,0.00014932,2]
[420086806,1775662284566,-200.0,0.00014932,2]
[420086807,1775662284577,-500.0,0.00014952,2]
[420086808,1775662284587,-500.0,0.00014952,2]
[420086809,1775662284597,-500.0,0.00014952,2]
[420086810,1775662284606,-500.0,0.00014952,2]
[420086811,1775662284616,-500.0,0.00014952,2]
[420086812,1775662284625,-500.0,0.00014952,2]
[420086813,1775662284634,-500.0,0.00014952,2]
[420086814,1775662284645,-500.0,0.00014952,2]
[420086815,1775662284657,-500.0,0.00014952,2]
[420086816,1775662284667,-500.0,0.00014952,2]
[420086817,1775662284677,-381.23774932,0.00014952,2]
[420086818,1775662284687,-500.0,0.00014952,2]
[420086819,1775662284698,-226.83643244,0.00014952,2]
[420086820,1775662284708,-150.0,0.00014952,2]
[420086821,1775662284718,-208.37237059,0.00014952,2]
[420086822,1775662284728,-500.0,0.00014952,2]
[420086823,1775662284738,-500.0,0.00014952,2]
[420086824,1775662284749,-500.0,0.00014952,2]
[420086825,1775662284758,-500.0,0.00014952,2]
[420086826,1775662284768,-150.0,0.00014952,2]
[420086827,1775662284778,-150.0,0.00014952,2]
[420086828,1775662284788,-500.0,0.00014952,2]
[420086829,1775662284799,-150.0,0.00014952,2]
[420086830,1775662284809,-182.15202066,0.00014952,2]
[420086831,1775662284819,-500.0,0.00014952,2]
[420086832,1775662284830,-500.0,0.00014952,2]
[420086833,1775662284839,-595.10163207,0.00014952,2]
[420086834,1775662284849,-150.0,0.00014952,2]
[420086835,1775662284862,-150.0,0.00014952,2]
[420086836,1775662284873,-256.56798922,0.00014952,2]
[420086837,1775662284883,-500.0,0.00014952,2]
[420086838,1775662284893,-500.0,0.00014952,2]
[420086839,1775662284902,-500.0,0.00014952,2]
[420086840,1775662284912,-500.0,0.00014952,2]
[420086841,1775662284923,-500.0,0.00014952,2]
[420086842,1775662284933,-500.0,0.00014952,2]
[420086843,1775662284944,-500.0,0.00014952,2]
[420086844,1775662284954,-500.0,0.00014952,2]
[420086845,1775662284964,-500.0,0.00014952,2]
[420086846,1775662284975,-500.0,0.00014952,2]
[420086847,1775662284985,-500.0,0.00014952,2]
[420086848,1775662284995,-500.0,0.00014952,2]
[420086849,1775662285005,-500.0,0.00014952,2]
[420086850,1775662285016,-500.0,0.00014952,2]
[420086851,1775662285027,-500.0,0.00014952,2]
[420086852,1775662285038,-500.0,0.00014952,2]
[420086853,1775662285049,-500.0,0.00014952,2]
[420086854,1775662285059,-341.376807,0.00014952,2]
[420086855,1775662285069,-399.40597196,0.00014952,2]
[420086856,1775662285080,-500.0,0.00014952,2]
[420086857,1775662285091,-500.0,0.00014952,2]
[420086858,1775662285101,-500.0,0.00014952,2]
[420086859,1775662285111,-165.86332065,0.00014952,2]
[420086860,1775662285121,-287.13980161,0.00014952,2]
[420086861,1775662285131,-500.0,0.00014952,2]
[420086862,1775662285141,-500.0,0.00014952,2]
[420086863,1775662285152,-500.0,0.00014952,2]
[420086864,1775662285162,-500.0,0.00014952,2]
[420086865,1775662285172,-339.81765262,0.00014952,2]
[420086866,1775662285182,-500.0,0.00014952,2]
[420086867,1775662285193,-388.39476597,0.00014952,2]
[420086868,1775662285203,-1778.0,0.00014952,2]
[420086869,1775662285212,-1778.0,0.00014952,2]
[420086870,1775662285222,-1778.0,0.00014952,2]
[420086871,1775662285233,-1778.0,0.00014952,2]
[420086872,1775662285243,-500.0,0.00014952,2]
[420086873,1775662285252,-1778.0,0.00014952,2]
[420086874,1775662285263,-500.0,0.00014952,2]
[420086875,1775662285272,-1778.0,0.00014952,2]
[420086876,1775662285281,-500.0,0.00014952,2]
[420086877,1775662285291,-1778.0,0.00014952,2]
[420086878,1775662285300,-500.0,0.00014952,2]
[420086879,1775662285310,-1778.0,0.00014952,2]
[420086880,1775662285320,-500.0,0.00014952,2]
[420086881,1775662285330,-1778.0,0.00014952,2]
[420086882,1775662285340,-1778.0,0.00014952,2]
[420086883,1775662285352,-274.1065221,0.00014952,2]
[420086884,1775662285362,-1778.0,0.00014952,2]
[420086885,1775662285372,-1778.0,0.00014952,2]
[420086886,1775662285382,-1778.0,0.00014952,2]
[420086887,1775662285391,-1778.0,0.00014952,2]
[420086888,1775662285401,-150.0,0.00014952,2]
[420086889,1775662285411,-150.0,0.00014952,2]
[420086890,1775662285422,-1778.0,0.00014952,2]
[420086891,1775662285432,-150.0,0.00014952,2]
[420086892,1775662285442,-1778.0,0.00014952,2]
[420086893,1775662285452,-150.0,0.00014952,2]
[420086894,1775662285462,-150.0,0.00014952,2]
[420086895,1775662285471,-1778.0,0.00014952,2]
[420086896,1775662285480,-174.61425545,0.00014952,2]
[420086897,1775662285491,-150.0,0.00014952,2]
[420086898,1775662285501,-500.0,0.00014952,2]
[420086899,1775662285511,-637.0,0.00014952,2]
[420086900,1775662285521,-150.0,0.00014952,2]
[420086901,1775662285531,-1778.0,0.00014952,2]
[420086902,1775662285541,-637.0,0.00014952,2]
[420086903,1775662285550,-150.0,0.00014952,2]
[420086904,1775662285561,-637.0,0.00014952,2]
[420086905,1775662285571,-500.0,0.00014952,2]
[420086906,1775662285580,-637.0,0.00014952,2]
[420086907,1775662285590,-528.23575097,0.00014952,2]
[420086908,1775662285601,-150.0,0.00014952,2]
[420086909,1775662285611,-637.0,0.00014952,2]
[420086910,1775662285621,-637.0,0.00014952,2]
[420086911,1775662285631,-286.3666211,0.00014952,2]
[420086912,1775662285640,-637.0,0.00014952,2]
[420086913,1775662285651,-1778.0,0.00014952,2]
[420086914,1775662285660,-637.0,0.00014952,2]
[420086915,1775662285670,-637.0,0.00014952,2]
[420086916,1775662285680,-500.0,0.00014952,2]
[420086917,1775662285689,-637.0,0.00014952,2]
[420086918,1775662285699,-637.0,0.00014952,2]
[420086919,1775662285708,-520.29151548,0.00014952,2]
[420086920,1775662285719,-637.0,0.00014952,2]
[420086921,1775662285728,-637.0,0.00014952,2]
[420086922,1775662285738,-500.0,0.00014952,2]
[420086923,1775662285747,-637.0,0.00014952,2]
[420086924,1775662285756,-637.0,0.00014952,2]
[420086925,1775662285765,-500.0,0.00014952,2]
[420086926,1775662285776,-1778.0,0.00014952,2]
[420086927,1775662285786,-637.0,0.00014952,2]
[420086928,1775662285795,-500.0,0.00014952,2]
[420086929,1775662285804,-500.0,0.00014952,2]
[420086930,1775662285814,-637.0,0.00014952,2]
[420086931,1775662285825,-500.0,0.00014952,2]
[420086932,1775662285835,-500.0,0.00014952,2]
[420086933,1775662285844,-500.0,0.00014952,2]
[420086934,1775662285853,-152.12238144,0.00014952,2]
[420086935,1775662285863,-500.0,0.00014952,2]
[420086936,1775662285873,-637.0,0.00014952,2]
[420086937,1775662285883,-500.0,0.00014952,2]
[420086938,1775662285892,-500.0,0.00014952,2]
[420086939,1775662285902,-500.0,0.00014952,2]
[420086940,1775662285911,-500.0,0.00014952,2]
[420086941,1775662285921,-500.0,0.00014952,2]
[420086942,1775662285931,-500.0,0.00014952,2]
[420086943,1775662285942,-1778.0,0.00014952,2]
[420086944,1775662285951,-500.0,0.00014952,2]
[420086945,1775662285961,-412.62015671,0.00014952,2]
[420086946,1775662285971,-500.0,0.00014952,2]
[420086947,1775662285981,-500.0,0.00014952,2]
[420086948,1775662285991,-637.0,0.00014952,2]
[420086949,1775662286002,-500.0,0.00014952,2]
[420086950,1775662286011,-345.51138736,0.00014952,2]
[420086951,1775662286020,-201.16710883,0.00014952,2]
[420086952,1775662286030,-637.0,0.00014952,2]
[420086953,1775662286041,-1778.0,0.00014952,2]
[420086954,1775662286050,-500.0,0.00014952,2]
[420086955,1775662286060,-500.0,0.00014952,2]
[420086956,1775662286070,-500.0,0.00014952,2]
[420086957,1775662286080,-500.0,0.00014952,2]
[420086958,1775662286090,-644.57907854,0.00014952,2]
[420086959,1775662286100,-500.0,0.00014952,2]
[420086960,1775662286110,-500.0,0.00014952,2]
[420086961,1775662286124,-637.0,0.00014952,2]
[420086962,1775662286134,-500.0,0.00014952,2]
[420086963,1775662286144,-500.0,0.00014952,2]
[420086964,1775662286154,-500.0,0.00014952,2]
[420086965,1775662286163,-500.0,0.00014952,2]
[420086966,1775662286173,-500.0,0.00014952,2]
[420086967,1775662286183,-500.0,0.00014952,2]
[420086968,1775662286194,-500.0,0.00014952,2]
[420086969,1775662286204,-500.0,0.00014952,2]
[420086970,1775662286214,-500.0,0.00014952,2]
[420086971,1775662286224,-500.0,0.00014952,2]
[420086972,1775662286233,-500.0,0.00014952,2]
[420086973,1775662286243,-500.0,0.00014952,2]
[420086974,1775662286253,-500.0,0.00014952,2]
[420086975,1775662286262,-500.0,0.00014952,2]
[420086976,1775662286272,-500.0,0.00014952,2]
[420086977,1775662286282,-500.0,0.00014952,2]
[420086978,1775662286292,-637.0,0.00014952,2]
[420086979,1775662286302,-500.0,0.00014952,2]
[420086980,1775662286312,-509.72471578,0.00014952,2]
[420086981,1775662286322,-500.0,0.00014952,2]
[420086982,1775662286333,-500.0,0.00014952,2]
[420086983,1775662286342,-500.0,0.00014952,2]
[420086984,1775662286352,-500.0,0.00014952,2]
[420086985,1775662286362,-432.47425874,0.00014952,2]
[420086986,1775662286370,-637.0,0.00014952,2]
[420086987,1775662286379,-658.0,0.00014952,2]
[420086988,1775662286389,-1778.0,0.00014952,2]
[420086989,1775662286398,-1797.43616336,0.00014952,2]
[420086990,1775662286408,-150.0,0.00014952,2]
[420086991,1775662286417,-150.0,0.00014952,2]
[420086992,1775662286427,-150.0,0.00014952,2]
[420086993,1775662286436,-150.0,0.00014952,2]
[420086994,1775662286447,-500.0,0.00014952,2]
[420086995,1775662286458,-150.0,0.00014952,2]
[420086996,1775662286468,-500.0,0.00014952,2]
[420086997,1775662286477,-188.34372111,0.00014952,2]
[420086998,1775662286487,-500.0,0.00014952,2]
[420086999,1775662286497,-500.0,0.00014952,2]
[420087000,1775662286507,-500.0,0.00014952,2]
[420087001,1775662286517,-500.0,0.00014952,2]
[420087002,1775662286527,-500.0,0.00014952,2]
[420087003,1775662286537,-500.0,0.00014952,2]
[420087004,1775662286547,-717.0,0.00014952,2]
[420087005,1775662286556,-500.0,0.00014952,2]
[420087006,1775662286566,-717.0,0.00014952,2]
[420087007,1775662286575,-500.0,0.00014952,2]
[420087008,1775662286585,-717.0,0.00014952,2]
[420087009,1775662286594,-717.0,0.00014952,2]
[420087010,1775662286605,-717.0,0.00014952,2]
[420087011,1775662286614,-717.0,0.00014952,2]
[420087012,1775662286625,-717.0,0.00014952,2]
[420087013,1775662286637,-717.0,0.00014952,2]
[420087014,1775662286647,-717.0,0.00014952,2]
[420087015,1775662286657,-717.0,0.00014952,2]
[420087016,1775662286667,-717.0,0.00014952,2]
[420087017,1775662286677,-717.0,0.00014952,2]
[420087018,1775662286687,-717.0,0.00014952,2]
[420087019,1775662286698,-500.0,0.00014952,2]
[420087020,1775662286708,-717.0,0.00014952,2]
[420087021,1775662286718,-500.0,0.00014952,2]
[420087022,1775662286727,-717.0,0.00014952,2]
[420087023,1775662286737,-717.0,0.00014952,2]
[420087024,1775662286747,-717.0,0.00014952,2]
[420087025,1775662286756,-208.03469882,0.00014952,2]
[420087026,1775662286772,-717.0,0.00014952,2]
[420087027,1775662286782,-160.5097946,0.00014952,2]
[420087028,1775662286792,-150.0,0.00014952,2]
[420087029,1775662286802,-150.0,0.00014952,2]
[420087030,1775662286812,-150.0,0.00014952,2]
[420087031,1775662286822,-150.0,0.00014952,2]
[420087032,1775662286833,-150.0,0.00014952,2]
[420087033,1775662286843,-717.0,0.00014952,2]
[420087034,1775662286853,-150.0,0.00014952,2]
[420087035,1775662286862,-150.0,0.00014952,2]
[420087036,1775662286872,-176.0009961,0.00014952,2]
[420087037,1775662286882,-150.0,0.00014952,2]
[420087038,1775662286892,-150.0,0.00014952,2]
[420087039,1775662286903,-150.0,0.00014952,2]
[420087040,1775662286915,-185.23665201,0.00014952,2]
[420087041,1775662286924,-150.88467267,0.00014952,2]
[420087042,1775662286934,-717.0,0.00014952,2]
[420087043,1775662286944,-717.0,0.00014952,2]
[420087044,1775662286954,-717.0,0.00014952,2]
[420087045,1775662286964,-717.0,0.00014952,2]
[420087046,1775662286973,-500.0,0.00014976,2]
[420087047,1775662286983,-500.0,0.00014981,2]
[420087048,1775662286993,-162.37,0.00015,10]
[420087049,1775662287002,-2756.92717347,0.00015,2]
[420087050,1775662287012,-300.0,0.00015,2]
[420087051,1775662287022,-1007.07827575,0.00015,2]
[420087052,1775662287031,-160.0,0.00015,2]
[420087053,1775662287041,-10000.0,0.00015,15]
[420087054,1775662287051,-10000.0,0.00015,15]
[420087055,1775662287062,-10000.0,0.00015,15]
[420087056,1775662287072,-218.0,0.00015012,2]
[420087057,1775662287082,-500.0,0.00015031,2]
[420087058,1775662287091,-524.53,0.00015068,2]
[420087059,1775662287101,-670.01,0.00015068,2]
[420087060,1775662287111,-213.120018,0.00015068,2]
[420087061,1775662287121,-213.120018,0.00015068,2]
[420087062,1775662287132,-213.120018,0.00015068,2]
[420087063,1775662287141,-213.120018,0.00015068,2]
[420087064,1775662287152,-213.120018,0.00015068,2]
[420087065,1775662287162,-213.120018,0.00015068,2]
[420087066,1775662287173,-213.120018,0.00015068,2]
[420087067,1775662287183,-213.120018,0.00015068,2]
[420087068,1775662287194,-213.120018,0.00015068,2]
[420087069,1775662287203,-213.120018,0.00015068,2]
[420087070,1775662287213,-213.120018,0.00015068,2]
[420087071,1775662287224,-213.120018,0.00015068,2]
[420087072,1775662287234,-213.120018,0.00015068,2]
[420087073,1775662287243,-213.120018,0.00015068,2]
[420087074,1775662287254,-213.120018,0.00015068,2]
[420087075,1775662287264,-213.120018,0.00015068,2]
[420087076,1775662287274,-213.120018,0.00015068,2]
[420087077,1775662287284,-213.120018,0.00015068,2]
[420087078,1775662287294,-213.120018,0.00015068,2]
[420087079,1775662287304,-213.120018,0.00015068,2]
[420087080,1775662287314,-500.0,0.00015086,2]
[420087081,1775662287325,-218.0,0.00015091,2]
[420087082,1775662287334,-1573.0,0.00015118,2]
[420087083,1775662287344,-214.48,0.00015139,2]
[420087084,1775662287356,-500.0,0.00015141,2]
[420087085,1775662287366,-427.4,0.00015162,2]
[420087086,1775662287377,-217.99,0.00015171,2]
[420087087,1775662287387,-169.8,0.00015177,2]
[420087088,1775662287398,-200.0,0.00015194,2]
[420087089,1775662287409,-1280.88388878,0.00015194,2]
[420087090,1775662287419,-771.01748645,0.00015194,2]
[420087091,1775662287430,-187.78006525,0.00015194,2]
[420087092,1775662287440,-181.08010149,0.00015194,2]
[420087093,1775662287450,-591.41950389,0.00015194,2]
[420087094,1775662287459,-500.0,0.00015196,2]
[420087095,1775662287469,-501.0,0.00015224,3]
[420087096,1775662287479,-2023.0,0.00015233,2]
[420087097,1775662287490,-500.0,0.00015251,2]
[420087098,1775662287500,-214.48,0.00015277,2]
[420087099,1775662287511,-1989.73,0.00015285,2]
[420087100,1775662287521,-384.08,0.0001529,2]
[420087101,1775662287530,-500.0,0.00015306,2]
[420087102,1775662287540,-2023.0,0.00015313,2]
[420087103,1775662287550,-2000.0,0.00015313,2]
[420087104,1775662287559,-2000.0,0.00015313,2]
[420087105,1775662287569,-2000.0,0.00015313,2]
[420087106,1775662287579,-2000.0,0.00015313,2]
[420087107,1775662287590,-2000.0,0.00015313,2]
[420087108,1775662287600,-2000.0,0.00015313,2]
[420087109,1775662287610,-2000.0,0.00015313,2]
[420087110,1775662287620,-2000.0,0.00015313,2]
[420087111,1775662287630,-2000.0,0.00015313,2]
[420087112,1775662287642,-2000.0,0.00015313,2]
[420087113,1775662287652,-2000.0,0.00015342,2]
[420087114,1775662287663,-2000.0,0.00015342,2]
[420087115,1775662287673,-2000.0,0.00015342,2]
[420087116,1775662287683,-254.25810122,0.00015342,2]
[420087117,1775662287694,-2000.0,0.00015342,2]
[420087118,1775662287705,-2000.0,0.00015342,2]
[420087119,1775662287714,-772.16418036,0.00015342,2]
[420087120,1775662287725,-2000.0,0.00015342,2]
[420087121,1775662287736,-197.87652131,0.00015342,2]
[420087122,1775662287746,-2000.0,0.00015342,2]
[420087123,1775662287757,-159.59,0.00015347,2]
[420087124,1775662287767,-1950.0,0.00015361,2]
[420087125,1775662287777,-1950.0,0.00015361,2]
[420087126,1775662287788,-1950.0,0.00015361,2]
[420087127,1775662287798,-1950.0,0.00015361,2]
[420087128,1775662287809,-1950.0,0.00015361,2]
[420087129,1775662287819,-1950.0,0.00015361,2]
[420087130,1775662287830,-1950.0,0.00015361,2]
[420087131,1775662288030,-1950.0,0.00015361,2]
[420087132,1775662288041,-1950.0,0.00015361,2]
[420087133,1775662288052,-1634.0,0.00015361,2]
[420087134,1775662288062,-500.0,0.00015361,2]
[420087135,1775662288073,-427.4,0.00015397,2]
[420087136,1775662288084,-500.0,0.00015416,2]
[420087137,1775662288095,-4939.0,0.00015453,2]
[420087138,1775662288106,-152.45672918,0.00015478,2]
[420087139,1775662288117,-201.60184993,0.0001548,2]
[420087140,1775662288128,-4000.0,0.00015507,2]
[420087141,1775662288138,-25000.0,0.0001552,3]
[420087142,1775662288149,-350.0,0.00015536,2]
[420087143,1775662288159,-256.490125,0.00015545,2]
[420087144,1775662288170,-256.490125,0.00015545,2]
[420087145,1775662288181,-151.0,0.00015545,2]
[420087146,1775662288192,-256.490125,0.00015545,2]
[420087147,1775662288202,-256.490124,0.00015545,2]
[420087148,1775662288212,-151.0,0.00015545,2]
[420087149,1775662288223,-151.0,0.00015545,2]
[420087150,1775662288233,-223.731716,0.00015545,2]
[420087151,1775662288244,-151.0,0.00015545,2]
[420087152,1775662288255,-151.0,0.00015545,2]
[420087153,1775662288265,-256.376188,0.00015545,2]
[420087154,1775662288276,-151.0,0.00015545,2]
[420087155,1775662288287,-256.376188,0.00015545,2]
[420087156,1775662288296,-151.0,0.00015545,2]
[420087157,1775662288307,-176.72331,0.00015545,2]
[420087158,1775662288318,-151.0,0.00015545,2]
[420087159,1775662288328,-151.0,0.00015545,2]
[420087160,1775662288339,-256.376188,0.00015545,2]
[420087161,1775662288350,-166.049335,0.00015545,2]
[420087162,1775662288361,-176.72331,0.00015545,2]
[420087163,1775662288371,-151.0,0.00015545,2]
[420087164,1775662288381,-256.376189,0.00015545,2]
[420087165,1775662288396,-166.049335,0.00015545,2]
[420087166,1775662288405,-176.72331,0.00015545,2]
[420087167,1775662288415,-166.049335,0.00015545,2]
[420087168,1775662288425,-176.723302,0.00015545,2]
[420087169,1775662288435,-166.049333,0.00015545,2]
[420087170,1775662288446,-153.836915,0.00015545,2]
[420087171,1775662288457,-159.385177,0.00015545,2]
[420087172,1775662288467,-307.030387,0.00015545,2]
[420087173,1775662288477,-307.030387,0.00015545,2]
[420087174,1775662288488,-307.030387,0.00015545,2]
[420087175,1775662288498,-307.030386,0.00015545,2]
[420087176,1775662288509,-245.422656,0.00015545,2]
[420087177,1775662288519,-245.422656,0.00015545,2]